[Event "44th Chess Olympiad Open 2022"]
[Site "Chennai"]
[Date "2022.08.06"]
[Round "8.71"]
[White "Righi, Ezio"]
[Black "Al-Burshaid, Ebrahim"]
[Result "1-0"]
[ECO "C68"]
[WhiteElo "1912"]
[BlackElo "1702"]
[Annotator "TA"]
[PlyCount "77"]
[EventDate "2022.07.29"]
[EventType "team-tourn"]
[EventCountry "IND"]
[SourceTitle "playchess.com"]
[Source "ChessBase"]
[SourceQuality "1"]
[WhiteTeam "San Marino"]
[BlackTeam "Brunei"]
[WhiteTeamCountry "SMR"]
[BlackTeamCountry "BRN"]
[TimeControl "40/5400+30:1800+30"]

{[%evp 21,77,-12,-10,-34,0,-13,0,0,5,-16,12,-16,62,69,125,120,152,140,145,102,113,110,116,70,87,62,125,125,136,124,124,121,131,104,162,160,153,152,178,162,223,215,490,453,484,482,478,473,460,418,485,464,485,479,545,544,2545,539]} 1. e4 {[%emt 0:00:05]} e5 {[%emt 0:00:33]} 2. Nf3 {[%emt 0:00:13]} Nc6 {[%emt 0:00:07]} 3. Bb5 {[%emt 0:00:24]} a6 {[%emt 0:00:14]} 4. Bxc6 {[%emt 0:00:28]} dxc6 {[%emt 0:00:07]} 5. O-O {[%emt 0:00:13]} Bg4 {[%emt 0:00:25]} 6. h3 {[%emt 0:00:23]} h5 {[%emt 0:00:40]} 7. d3 {[%emt 0:00:27]} Qf6 {[%emt 0:00:33]} 8. Nbd2 {[%emt 0:00:18]} Ne7 {[%emt 0:00:35]} 9. Nc4 {[%emt 0:00:18]} Bxf3 {[%emt 0:01:17]} 10. Qxf3 {[%emt 0:00:13]} Qxf3 {[%emt 0:00:20]} 11. gxf3 {[%emt 0:00:11]} Ng6 $1 {[%emt 0:01:52]} 12. Rd1 $1 {[%emt 0:03:29][%mdl 4] is now more promising than 12.Be3. C68: Ruy Lopez: Exchange Variation, sidelines.} O-O-O {[%emt 0:01:26]} 13. Kf1 {[%emt 0:01:10]} f6 {[%emt 0:01:05]} 14. Ke2 {[%emt 0:00:57] The position is equal.} c5 {[%emt 0:04:39]} 15. Be3 {[%emt 0:03:00] [#]} b6 $146 {[%emt 0:04:49]} ({Predecessor:} 15... Nh4 16. f4 exf4 17. Bxf4 g5 18. Be3 Ng6 19. Rg1 Rg8 20. a4 Bd6 21. Nxd6+ cxd6 {½-½ (43) Mikuev,E (2258)-Chalupa,I (2086) Prague 2003}) 16. c3 {[%emt 0:03:07]} b5 {[%emt 0:09:30]} (16... Nf4+ $11 17. Bxf4 exf4) 17. Na5 $14 {[%emt 0:01:07]} Rd7 {[%emt 0:05:04]} ({Black should play} 17... Nf4+ $14 18. Bxf4 exf4) 18. Rg1 $16 {[%emt 0:02:05]} Nh4 {[%emt 0:05:41]} 19. Nb3 {[%emt 0:01:50]} g5 {[%emt 0:04:25]} 20. Nxc5 {[%emt 0:01:42]} Bxc5 {[%emt 0:00:42]} 21. Bxc5 {[%emt 0:00:06]} Rhd8 {[%emt 0:03:32]} 22. Rad1 {[%emt 0:01:23]} (22. Rgd1 $16) 22... Ng6 $14 {[%emt 0:03:58] [#] ...Nf4+ is the strong threat.} 23. Be3 {[%emt 0:00:21]} h4 {[%emt 0:00:58]} (23... c5 $14) 24. d4 $16 {[%emt 0:02:00]} c6 {[%emt 0:16:49]} 25. b4 {[%emt 0:16:53]} Re8 {[%emt 0:08:51]} 26. Rd2 {[%emt 0:01:43]} Kc7 {[%emt 0:02:01]} 27. Ra1 {[%emt 0:02:25]} Ra8 {[%emt 0:10:37] [#]} (27... Nf4+ $16 28. Bxf4 gxf4) 28. a4 $1 $18 {[%emt 0:02:00]} Kb7 {[%emt 0:03:36]} 29. Rda2 {[%emt 0:01:27][%cal Od4d5]} bxa4 {[%emt 0:05:04]} 30. Rxa4 {[%emt 0:00:20]} Nf4+ {[%emt 0:00:24]} (30... exd4 {was worth a try.} 31. Rd1 (31. cxd4 Nf4+ 32. Bxf4 gxf4 $16) 31... d3+ 32. Rxd3 Rxd3 33. Kxd3 c5 34. bxc5 (34. Bxc5 Nf4+ 35. Ke3 Rd8 $16) 34... Ne5+ 35. Ke2 a5) 31. Bxf4 {[%emt 0:00:35]} exf4 {[%emt 0:00:18][%mdl 4096] Endgame KRR-KRR} (31... gxf4 32. dxe5 fxe5) 32. Ra5 {[%emt 0:01:55]} Re7 {[%emt 0:04:14]} 33. Rf5 {[%emt 0:02:19]} Re6 {[%emt 0:01:30]} 34. Kd3 {[%emt 0:00:48]} Rd8 {[%emt 0:00:18]} 35. Raa5 {[%emt 0:00:55]} Kb6 {[%emt 0:00:43]} 36. e5 {[%emt 0:02:08] White is clearly winning.} fxe5 {[%emt 0:00:48]} 37. Raxe5 {[%emt 0:00:11]} Rxe5 {[%emt 0:00:20]} 38. Rxe5 {[%emt 0:00:06]} Rd5 {[%emt 0:00:38]} 39. Ke4 {[%emt 0:00:26] Weighted Error Value: White=0.10 (very precise) /Black=0.34} (39. Rxd5 $142 cxd5 40. c4) 1-0

[Event "44th Chess Olympiad Open 2022"]
[Site "Chennai"]
[Date "2022.08.06"]
[Round "8.72"]
[White "Hsu, Hsuan-Ming"]
[Black "Dlamini Simphiwe"]
[Result "1-0"]
[ECO "B10"]
[WhiteElo "1900"]
[BlackElo "1569"]
[Annotator "TA"]
[PlyCount "83"]
[EventDate "2022.07.29"]
[EventType "team-tourn"]
[EventCountry "IND"]
[SourceTitle "playchess.com"]
[Source "ChessBase"]
[SourceQuality "1"]
[WhiteTeam "Taiwan"]
[BlackTeam "SWZ"]
[WhiteTeamCountry "TPE"]
[TimeControl "40/5400+30:1800+30"]

{[%evp 9,83,-14,-5,-5,-2,-39,2,0,4,0,14,23,22,17,12,0,42,37,36,28,60,55,56,40,42,39,51,39,64,54,58,54,123,122,129,133,122,120,160,152,154,120,131,106,130,130,130,127,127,100,108,94,112,119,160,79,81,70,100,70,72,59,64,76,110,99,352,250,556,553,531,509,533,504,569,549]} 1. e4 {[%emt 0:00:04]} c6 {[%emt 0:00:03]} 2. Ne2 {[%emt 0:01:05]} d5 {[%emt 0:00:22]} 3. e5 {[%emt 0:00:02]} Bf5 {[%emt 0:01:35][%cal Bc8f5,Bf5g6,Bg6h7][%mdl 32]} 4. Ng3 {[%emt 0:00:20]} Bg6 {[%emt 0:00:16]} 5. h4 {[%emt 0:00:07]} h6 {[%emt 0:01:11]} 6. h5 {[%emt 0:00:21] B10: Caro-Kann: 2 d3 and 2 c4.} Bh7 {[%emt 0:00:06]} 7. e6 {[%emt 0:00:03]} Qd6 {[%emt 0:00:30] was the old line (7...fxe6).} 8. exf7+ {[%emt 0:03:46] The position is equal.} Kxf7 {[%emt 0:00:13]} 9. d4 {[%emt 0:03:44]} Nd7 {[%emt 0:00:17]} 10. Bd3 {[%emt 0:01:30]} Bxd3 {[%emt 0:03:15]} 11. Qxd3 {[%emt 0:00:15]} e5 {[%emt 0:03:36][%cal Be7e5,Be5e4][%mdl 32] [#]} 12. O-O $146 {[%emt 0:10:56]} ({Predecessor:} 12. Qf5+ Ke8 13. O-O Ne7 14. Qd3 e4 15. Qe2 Nf6 16. c4 Kd7 17. Nc3 g5 18. c5 {1-0 (32) Marholev,D (2272)-Dokuzov,Y (1641) Plovdiv 2017}) 12... e4 {[%emt 0:05:56]} 13. Qb3 {[%emt 0:00:12][%csl LRb7,LRe4]} ({Don't go for} 13. Nxe4 $2 dxe4 14. Qxe4 Ngf6 $19) 13... Qb4 {[%emt 0:00:44]} 14. f3 {[%emt 0:04:22]} Ngf6 {[%emt 0:18:33]} 15. Qxb4 {[%emt 0:19:50]} Bxb4 {[%emt 0:00:13]} 16. fxe4 {[%emt 0:00:08]} dxe4 {[%emt 0:00:31]} 17. c3 {[%emt 0:01:22]} Bd6 {[%emt 0:10:40]} 18. Nxe4 {[%emt 0:01:59]} Bc7 {[%emt 0:00:50]} 19. Bf4 {[%emt 0:06:05]} Nxe4 {[%emt 0:05:20]} 20. Bxc7+ {[%emt 0:00:14]} Ndf6 {[%emt 0:03:21]} (20... Nef6 $1 $14) 21. Na3 $36 {[%emt 0:03:36][%mdl 2048] White has strong initiative.} Rhe8 {[%emt 0:04:58] [#]} 22. Be5 $1 {[%emt 0:01:34]} Re6 {[%emt 0:05:47]} 23. Rae1 {[%emt 0:21:08] And now Rxe4 would win.} Kg8 {[%emt 0:11:58]} 24. Bxf6 {[%emt 0:03:14]} gxf6 {[%emt 0:00:18]} 25. g4 {[%emt 0:01:37]} Rae8 {[%emt 0:00:33]} 26. Kg2 {[%emt 0:02:41]} Kf7 {[%emt 0:00:08]} 27. Nc4 {[%emt 0:02:56]} Ng5 {[%emt 0:07:21]} 28. Rxe6 {[%emt 0:07:33]} Rxe6 {[%emt 0:00:02][%mdl 4096] Endgame KRN-KRN} 29. Ne5+ {[%emt 0:02:04]} Ke7 {[%emt 0:01:10]} 30. Nd3 {[%emt 0:00:59] White is more active.} Re4 {[%emt 0:02:05]} 31. Re1 {[%emt 0:00:19]} f5 {[%emt 0:04:48] [#]} 32. gxf5 {[%emt 0:01:25]} ({White should try} 32. Rxe4+ $1 Nxe4 33. Kf3 (33. gxf5 Kf6 $16)) 32... Rxe1 {[%emt 0:00:37]} 33. Nxe1 {[%emt 0:00:11] Threatens to win with Nc2. KN-KN} Kf6 {[%emt 0:00:01]} 34. Kg3 {[%emt 0:01:11]} Kxf5 {[%emt 0:00:14]} 35. Nd3 {[%emt 0:00:19]} Ne6 {[%emt 0:04:24]} 36. Kh4 {[%emt 0:00:27]} a6 {[%emt 0:00:50]} 37. Ne5 {[%emt 0:00:30] Ng4 is the strong threat.} Kf6 $2 {[%emt 0:03:02][%mdl 8192] Black cannot hold the game after this.} (37... Ng5 $16) 38. Kg4 {[%emt 0:00:12]} Nd8 $2 {[%emt 0:02:30]} (38... Nc7 {is a better chance.} 39. Nd7+ Ke7) 39. Nd7+ $18 {[%emt 0:00:26] White is clearly winning.} Ke7 {[%emt 0:00:10]} 40. Nc5 {[%emt 0:00:06]} Kf6 {[%emt 0:01:03]} 41. b4 {[%emt 0:30:50] aiming for a4.} b6 {[%emt 0:04:56]} 42. Nd7+ {[%emt 0:00:00] Weighted Error Value: White=0.11 (very precise) /Black=0.39} 1-0

[Event "44th Chess Olympiad Open 2022"]
[Site "Chennai"]
[Date "2022.08.06"]
[Round "8.72"]
[White "Sihlongonyane, Sikhanyiso"]
[Black "Liu, Yeh Yang"]
[Result "0-1"]
[WhiteElo "1658"]
[BlackElo "1994"]
[Annotator "TA"]
[PlyCount "25"]
[EventDate "2022.07.29"]
[EventType "team-tourn"]
[EventCountry "IND"]
[SourceTitle "playchess.com"]
[Source "ChessBase"]
[SourceQuality "1"]
[WhiteTeam "SWZ"]
[BlackTeam "Taiwan"]
[BlackTeamCountry "TPE"]
[TimeControl "40/5400+30:1800+30"]

{[%evp 6,6,63]} 1. e4 {[%emt 0:00:10]} c5 {[%emt 0:00:02]} 2. Nf3 {[%emt 0:00:05]} Nc6 {[%emt 0:00:04]} 3. Bb5 {[%emt 0:00:06]} Nd4 {[%emt 0:00:10] [#] A rather calm draw.} {Predecessor:} 4. Nxd4 $146 cxd4 5. c3 a6 6. Bd3 {B30: Sicilian: 2...Nc6 3 Bb5, lines without ...g6.} e5 7. cxd4 exd4 8. O-O Ne7 9. Bc4 Nc6 10. d3 Be7 11. f4 d6 12. Nd2 O-O 13. Nf3 {1-0 (32) Blomqvist,E (2567)-Ehlvest,J (2532) London 2016} 0-1

[Event "44th Chess Olympiad Open 2022"]
[Site "Chennai"]
[Date "2022.08.06"]
[Round "8.73"]
[White "Adu-Poku, Kwabena"]
[Black "Njau, Albert"]
[Result "1/2-1/2"]
[ECO "E16"]
[WhiteElo "1974"]
[BlackElo "1842"]
[Annotator "TA"]
[PlyCount "80"]
[EventDate "2022.07.29"]
[EventType "team-tourn"]
[EventCountry "IND"]
[SourceTitle "playchess.com"]
[Source "ChessBase"]
[SourceQuality "1"]
[WhiteTeam "Ghana"]
[BlackTeam "Tanzania"]
[WhiteTeamCountry "GHA"]
[BlackTeamCountry "TAN"]
[TimeControl "40/5400+30:1800+30"]

{[%evp 16,80,42,41,37,23,60,61,80,74,129,121,199,97,104,95,148,143,183,89,89,88,81,93,122,134,133,113,111,91,191,20,28,0,0,0,0,0,0,0,0,0,0,-22,0,0,0,0,0,-153,2,-736,-665,-389,-162,-288,-288,-288,-281,-275,-274,-274,-267,-258,-211,-248,-210]} 1. d4 {[%emt 0:00:08]} Nf6 {[%emt 0:00:17]} 2. c4 {[%emt 0:00:14]} e6 {[%emt 0:00:16]} 3. Nf3 {[%emt 0:00:26]} b6 {[%emt 0:00:21]} 4. g3 {[%emt 0:00:53]} Bb7 {[%emt 0:00:11]} 5. Bg2 {[%emt 0:00:05]} Bb4+ {[%emt 0:01:17]} 6. Bd2 {[%emt 0:00:48]} a5 {[%emt 0:02:34]} 7. O-O {[%emt 0:03:03]} O-O {[%emt 0:00:23]} 8. a3 {[%emt 0:01:32]} Be7 {[%emt 0:02:05]} 9. Nc3 {[%emt 0:00:30]} Ne4 {[%emt 0:00:44] E16: Queen's Indian: 4 g3 Bb7 5 Bg2 Bb4+.} 10. Qc2 {[%emt 0:10:42]} Nxc3 {[%emt 0:02:43]} 11. Bxc3 {[%emt 0:01:04][%cal Of3g5]} f5 {[%emt 0:04:17] White is slightly better.} 12. d5 {[%emt 0:03:26] [#]} Qc8 $146 {[%emt 0:23:23]} ({Better is} 12... Bf6) ({Predecessor:} 12... Bf6 13. Nd4 Qe8 14. Rad1 Bxd4 15. Bxd4 e5 16. Bc3 a4 17. f4 e4 18. d6 c5 {0-1 (37) Thomas,A (2128)-Haussernot,C (2108) Mulhouse 2022}) 13. Nd4 $16 {[%emt 0:05:47]} g6 {[%emt 0:12:26] [#]} (13... Na6 $16) 14. f4 {[%emt 0:08:28]} (14. e4 $1 $18 {is the precise move to win.}) 14... c6 {[%emt 0:08:10][%cal Rc6d5]} 15. dxe6 {[%emt 0:06:12] White is much more active. The black rooks are badly placed.} dxe6 {[%emt 0:00:14]} (15... c5 $142) 16. e4 {[%emt 0:00:47]} Bc5 {[%emt 0:08:30]} 17. Kh1 {[%emt 0:03:30]} (17. Rad1 $18 {has better winning chances.}) 17... Bxd4 {[%emt 0:03:36]} 18. Bxd4 {[%emt 0:00:30]} c5 {[%emt 0:01:31]} 19. Bc3 {[%emt 0:00:17]} Ra7 {[%emt 0:05:35]} 20. Rad1 {[%emt 0:02:17]} Bc6 {[%emt 0:02:37]} 21. Rfe1 {[%emt 0:02:06]} Rd7 {[%emt 0:01:53] Prevents Rd6.} 22. exf5 {[%emt 0:05:22]} exf5 {[%emt 0:10:19]} (22... Bxg2+ $16 23. Qxg2 exf5) 23. b3 $2 {[%emt 0:07:26]} (23. Bd5+ $18 Rdf7 24. Kg1) 23... Re8 {[%emt 0:03:25]} 24. Bb2 {[%emt 0:01:19]} Bxg2+ {[%emt 0:00:36]} 25. Kxg2 {[%emt 0:06:07] And now Qc3 would win.} Nc6 {[%emt 0:00:29]} 26. Kf2 {[%emt 0:02:28]} Kf7 {[%emt 0:01:51]} 27. Bc3 {[%emt 0:03:59]} Rxd1 {[%emt 0:00:33]} 28. Rxd1 {[%emt 0:03:40]} Qe6 {[%emt 0:01:01]} 29. Rd3 {[%emt 0:02:17] Prevents Qe3+.} Rd8 {[%emt 0:00:52]} (29... Nd4 $5 {[%cal Rd4c2]} 30. Qd1 Qe2+ 31. Qxe2 Rxe2+ 32. Kf1 Rxh2 33. Bxd4 cxd4 $15) 30. Rxd8 {[%emt 0:07:50]} Nxd8 $11 {[%emt 0:00:10][%mdl 4096] Endgame KQB-KQN} 31. Qd3 {[%emt 0:00:21]} Nc6 {[%emt 0:00:48]} 32. Qd5 $2 {[%emt 0:00:52]} (32. h3 $11) 32... Ke7 $2 {[%emt 0:01:12]} (32... Qxd5 $17 33. cxd5 Ne7) 33. Be5 $2 {[%emt 0:01:58][%mdl 8192] This costs White the game.} (33. Qxe6+ $11 Kxe6 34. Ke3) 33... Qxd5 $19 {[%emt 0:00:58]} 34. cxd5 {[%emt 0:00:02] KB-KN} Nd4 {[%emt 0:00:10]} (34... Nxe5 $142 35. fxe5 b5) 35. b4 {[%emt 0:01:11]} (35. Ke3 {was worth a try.} Nxb3 36. a4) 35... axb4 {[%emt 0:00:51]} 36. axb4 {[%emt 0:00:01] [#]} Nc2 $1 {[%emt 0:00:37][%cal Bd4c2,Bc2b4,Bb4d5][%mdl 32]} 37. bxc5 {[%emt 0:00:53]} bxc5 {[%emt 0:00:18]} 38. Ke2 {[%emt 0:00:50]} Nb4 {[%emt 0:00:24]} 39. d6+ {[%emt 0:00:12]} Ke6 {[%emt 0:00:29]} 40. Kd2 {[%emt 0:00:18]} Nd5 {[%emt 0:01:02] Weighted Error Value: White=0.60/Black=0.28 (precise)} 1/2-1/2

[Event "44th Chess Olympiad Open 2022"]
[Site "Chennai"]
[Date "2022.08.06"]
[Round "8.73"]
[White "Mlawa, Hemed"]
[Black "Hasford, John Kojo"]
[Result "1/2-1/2"]
[ECO "B07"]
[WhiteElo "1896"]
[BlackElo "1976"]
[Annotator "TA"]
[PlyCount "86"]
[EventDate "2022.07.29"]
[EventType "team-tourn"]
[EventCountry "IND"]
[SourceTitle "playchess.com"]
[Source "ChessBase"]
[SourceQuality "1"]
[WhiteTeam "Tanzania"]
[BlackTeam "Ghana"]
[WhiteTeamCountry "TAN"]
[BlackTeamCountry "GHA"]
[TimeControl "40/5400+30:1800+30"]

{[%evp 9,86,22,65,62,76,52,94,104,127,120,122,95,89,86,96,46,46,0,0,0,-6,-15,-13,-29,-26,-26,-26,-26,-26,-34,-33,-33,-33,-34,-16,-17,-20,-114,-16,-64,-17,-18,-18,-58,0,0,-39,0,0,0,0,0,0,0,0,0,0,0,0,0,0,0,0,-8,0,0,0,0,0,0,0,0,0,0,64,0,121,0,0]} 1. d4 {[%emt 0:00:06]} Nf6 {[%emt 0:01:41]} 2. Bf4 {[%emt 0:00:12]} g6 {[%emt 0:00:40]} 3. Nc3 {[%emt 0:00:06]} Bg7 {[%emt 0:00:33]} 4. e4 {[%emt 0:00:08]} d6 {[%emt 0:00:13]} 5. Qd2 {[%emt 0:00:08]} Nc6 {[%emt 0:00:51]} 6. O-O-O {[%emt 0:00:17] B07: Pirc Defence: Miscellaneous Systems.} O-O {[%emt 0:00:27]} 7. f3 {[%emt 0:00:17]} Nh5 {[%emt 0:01:40]} 8. Bh6 {[%emt 0:00:14] White is better.} e5 {[%emt 0:00:48][%cal Rc6d4]} 9. Bxg7 {[%emt 0:11:19]} Kxg7 {[%emt 0:00:29]} 10. dxe5 {[%emt 0:04:09]} dxe5 {[%emt 0:02:24] [#]} 11. Qe3 {[%emt 0:06:06]} Nd4 {[%emt 0:01:21] [#]} 12. Nce2 $146 {[%emt 0:00:30]} (12. Nge2 $16) ({Predecessor:} 12. Nge2 c5 13. g4 Nf6 14. h4 Be6 15. h5 Rh8 16. h6+ Kf8 17. Ng3 Qa5 18. g5 {1-0 (40) Bakalchuk,J (2410)-Szalanczy,E (2217) Budapest 2018}) 12... c5 $14 {[%emt 0:00:55]} 13. c3 {[%emt 0:00:27]} ({White should try} 13. g4 $14 Nf6 14. c3) 13... Qc7 $11 {[%emt 0:00:41][%cal Of8d8]} 14. Kb1 {[%emt 0:03:23]} Nxe2 {[%emt 0:03:10]} 15. Nxe2 {[%emt 0:02:03]} Be6 {[%emt 0:00:19]} 16. g4 {[%emt 0:02:30]} Nf4 {[%emt 0:00:41]} 17. Nxf4 {[%emt 0:01:57]} exf4 {[%emt 0:01:56]} 18. Qc1 {[%emt 0:00:40]} h6 {[%emt 0:00:33]} 19. c4 {[%emt 0:01:40]} Qe5 {[%emt 0:01:59]} 20. b3 {[%emt 0:01:59]} Rfd8 {[%emt 0:00:57][%cal Oe6g4]} 21. Be2 {[%emt 0:02:08]} Rd4 {[%emt 0:00:18]} (21... b6 {with more complications.} 22. h4 a5 23. Qc2 Kf6) 22. Rxd4 {[%emt 0:00:35]} cxd4 {[%emt 0:00:22]} 23. Qb2 {[%emt 0:01:29]} (23. Bd3 $11) 23... Rd8 {[%emt 0:00:44]} (23... Bxg4 $1 $17 {...Bh3 is the strong threat.} 24. Rd1 Be6) 24. Bd3 {[%emt 0:00:16]} (24. Rd1 $11 {was preferrable.}) 24... Rd6 {[%emt 0:01:38]} (24... h5 $15 {feels stronger.} 25. h3 b6) 25. Rc1 {[%emt 0:05:38]} Rc6 {[%emt 0:10:18]} 26. b4 {[%emt 0:05:56]} a6 {[%emt 0:00:00]} (26... b6 $15) 27. a3 {[%emt 0:00:59]} b6 {[%emt 0:04:22]} 28. b5 {[%emt 0:03:09]} axb5 {[%emt 0:00:00]} 29. cxb5 {[%emt 0:00:33]} Rc3 {[%emt 0:00:00]} 30. Rxc3 {[%emt 0:01:21]} dxc3 {[%emt 0:00:00][%mdl 4096] Endgame KQB-KQB} 31. Qb4 {[%emt 0:00:25]} Kh7 {[%emt 0:01:02]} 32. Kc2 {[%emt 0:02:53]} h5 {[%emt 0:01:33]} 33. h3 {[%emt 0:08:41]} Qg5 {[%emt 0:02:40]} 34. Qxc3 {[%emt 0:18:08]} Qh4 {[%emt 0:00:21]} 35. Qd2 {[%emt 0:05:53]} Qxh3 {[%emt 0:00:37] [#] Strongly threatening ...h4.} 36. gxh5 {[%emt 0:00:33]} Qxh5 {[%emt 0:01:34]} 37. Qxf4 {[%emt 0:06:06] Hoping for Qc7.} Qc5+ {[%emt 0:00:15]} 38. Kd2 {[%emt 0:00:00]} Qxa3 {[%emt 0:01:00]} 39. Qh2+ {[%emt 0:00:00]} Kg7 {[%emt 0:06:21]} 40. Qe5+ {[%emt 0:01:24]} Kf8 {[%emt 0:06:26]} 41. Qb8+ {[%emt 0:29:39]} Ke7 {[%emt 0:31:22]} (41... Kg7 $11) 42. Qc7+ {[%emt 0:00:00]} (42. Qxb6 $14 Qb4+ 43. Ke2) 42... Kf6 {[%emt 0:00:00]} (42... Bd7 $1 $11 {keeps the balance.}) 43. Qf4+ {[%emt 0:00:00]} ({White has to play} 43. Qxb6 $16 {aiming for Qd4+.} Qb4+ 44. Ke2) 43... Kg7 {[%emt 0:00:00] Weighted Error Value: White=0.17 (very precise) /Black=0.20 (precise)} 1/2-1/2

[Event "44th Chess Olympiad Open 2022"]
[Site "Chennai"]
[Date "2022.08.06"]
[Round "8.74"]
[White "Prudente, Elmer"]
[Black "Amba Oyon Marius Claude"]
[Result "1-0"]
[ECO "B41"]
[WhiteElo "1995"]
[BlackElo "1938"]
[Annotator "TA"]
[PlyCount "79"]
[EventDate "2022.07.29"]
[EventType "team-tourn"]
[EventCountry "IND"]
[SourceTitle "playchess.com"]
[Source "ChessBase"]
[SourceQuality "1"]
[WhiteTeam "GUM"]
[BlackTeam "CMR"]
[TimeControl "40/5400+30:1800+30"]

{[%evp 13,79,24,63,52,62,62,75,61,110,70,70,32,70,38,89,60,69,46,109,106,138,128,237,242,310,294,309,305,407,397,399,394,458,445,438,438,533,537,573,471,634,634,748,759,705,638,625,625,571,586,740,739,750,580,865,861,1164,1126,1422,979,2221,2132,2073,1864,29986,29987,29990,29991]} 1. e4 {[%emt 0:00:04]} c5 {[%emt 0:00:12]} 2. Nf3 {[%emt 0:00:06]} e6 {[%emt 0:00:15]} 3. d4 {[%emt 0:00:10]} cxd4 {[%emt 0:00:12]} 4. Nxd4 {[%emt 0:00:01]} a6 {[%emt 0:00:13]} 5. c4 {[%emt 0:00:16]} Qc7 {[%emt 0:00:26]} 6. Nc3 {[%emt 0:01:03]} Nf6 {[%emt 0:00:19]} 7. a3 {[%emt 0:04:57]} Be7 {[%emt 0:00:32][%cal Of6e4]} 8. Be2 {[%emt 0:00:14] White is more active. B41: Sicilian: Kan Variation: 5 c4.} Nc6 {[%emt 0:00:33]} 9. Be3 {[%emt 0:00:19]} b6 {[%emt 0:03:43]} 10. O-O {[%emt 0:01:11] [#] White is better.} (10. f4 $5 {[%cal Re4e5]}) 10... h5 $146 {[%emt 0:00:42]} (10... Bb7 $14) ({Predecessor:} 10... Bb7 11. Rc1 Rc8 12. f3 Bd6 13. f4 Bc5 14. Nc2 Ne7 15. Qd3 h5 16. b4 Bxe3+ 17. Qxe3 {1-0 (37) Focke,A (1759)-Schamber,M (1494) Malchow 2018}) 11. h3 {[%emt 0:00:49]} Bb7 {[%emt 0:00:23]} 12. Qc2 {[%emt 0:07:39]} Rc8 {[%emt 0:06:21]} 13. Rac1 {[%emt 0:00:35]} Qb8 {[%emt 0:01:07]} (13... Ng4 $14 14. hxg4 hxg4) 14. Nxc6 {[%emt 0:18:15]} Bxc6 {[%emt 0:00:54]} 15. Qd3 {[%emt 0:02:29]} h4 {[%emt 0:08:45] Black is on the road to losing.} (15... O-O $14) 16. b4 $16 {[%emt 0:01:46]} Ba8 {[%emt 0:07:30]} 17. Rfd1 {[%emt 0:03:01]} Rd8 {[%emt 0:00:00]} (17... Bd8 $16 18. Bd4 d6) 18. Qd4 $18 {[%emt 0:01:58]} e5 {[%emt 0:03:26]} 19. Qxb6 {[%emt 0:03:19]} Qxb6 {[%emt 0:01:12]} 20. Bxb6 {[%emt 0:00:08]} Rb8 {[%emt 0:00:27]} 21. Bc7 {[%emt 0:00:08][%csl LRb8,LRe5]} Rc8 {[%emt 0:00:42]} 22. Bxe5 {[%emt 0:00:19]} O-O {[%emt 0:08:17]} 23. Bxf6 {[%emt 0:04:09]} Bxf6 {[%emt 0:00:10]} 24. Rxd7 {[%emt 0:00:18]} Bxc3 {[%emt 0:01:21]} 25. Rxc3 {[%emt 0:00:09]} Bxe4 {[%emt 0:00:12]} 26. Ra7 {[%emt 0:00:47]} Rc6 {[%emt 0:00:26]} 27. c5 {[%emt 0:00:12]} Rg6 {[%emt 0:00:25]} 28. f3 {[%emt 0:00:13]} Bf5 {[%emt 0:00:45]} 29. Bxa6 {[%emt 0:00:42]} Bxh3 {[%emt 0:00:16]} 30. Rc2 {[%emt 0:00:41]} Bf5 {[%emt 0:00:21]} 31. Rd2 {[%emt 0:00:25]} Re8 {[%emt 0:00:17]} 32. Bc4 {[%emt 0:01:18]} Rf6 {[%emt 0:01:03]} 33. Kf2 {[%emt 0:00:25]} Bg6 {[%emt 0:00:44]} 34. b5 {[%emt 0:00:19][%cal Bb4b5,Bb5b6][%mdl 32]} h3 {[%emt 0:00:26]} 35. gxh3 {[%emt 0:00:26]} Bh5 {[%emt 0:00:01]} 36. Rd3 {[%emt 0:00:30]} Re4 {[%emt 0:00:13]} 37. Bd5 {[%emt 0:01:58]} Re8 {[%emt 0:02:03]} 38. b6 {[%emt 0:02:17] Black must now prevent b7.} Rd8 {[%emt 0:01:47] [#]} 39. Bxf7+ $1 {[%emt 0:00:19]} Bxf7 {[%emt 0:00:25]} (39... Kh7 40. Rxd8) 40. Rxd8+ {[%emt 0:00:09] Weighted Error Value: White=0.19 (very precise) /Black=0.53} 1-0